[Event "December 5 Early 2023"]
[Site "https://www.chess.com"]
[Date "2023.12.05"]
[Round "6"]
[White "Kovalyov, Eduard"]
[Black "Janaszak, Dawid"]
[Result "0-1"]
[Board "129"]
[TimeControl "180+1"]
[WhiteFideId "14118033"]
[BlackFideId "1119206"]
[WhiteElo "2425"]
[BlackElo "2592"]
[WhiteTeam "UKR"]
[BlackTeam "POL"]
[WhiteClock "0:00:08"]
[BlackClock "0:00:14"]

1. d4 {[%clk 0:03:00]}  d5 {[%clk 0:02:06]} 2. c4 {[%clk 0:03:00]}  e6 {[%clk 0:02:05]} 3. Nc3 {[%clk 0:02:59]}  c5 {[%clk 0:02:06]} 4. cxd5 {[%clk 0:02:59]}  cxd4 {[%clk 0:02:06]} 5. Qxd4 {[%clk 0:02:57]}  Nc6 {[%clk 0:02:06]} 6. Qd1 {[%clk 0:02:51]}  exd5 {[%clk 0:02:06]} 7. Qxd5 {[%clk 0:02:49]}  Bd6 {[%clk 0:02:06]} 8. Nf3 {[%clk 0:02:45]}  Nf6 {[%clk 0:02:07]} 9. Qd1 {[%clk 0:02:44]}  Bf5 {[%clk 0:02:06]} 10. a3 {[%clk 0:02:42]}  Qe7 {[%clk 0:02:04]} 11. e3 {[%clk 0:02:36]}  O-O-O {[%clk 0:02:04]} 12. Bd2 {[%clk 0:02:36]}  g5 {[%clk 0:02:03]} 13. Be2 {[%clk 0:02:33]}  g4 {[%clk 0:02:02]} 14. Nd4 {[%clk 0:02:33]}  Nxd4 {[%clk 0:02:02]} 15. exd4 {[%clk 0:02:34]}  Kb8 {[%clk 0:01:53]} 16. O-O {[%clk 0:02:31]}  h5 {[%clk 0:01:53]} 17. Nb5 {[%clk 0:02:26]}  h4 {[%clk 0:01:49]} 18. Re1 {[%clk 0:02:18]}  g3 {[%clk 0:01:47]} 19. Nxd6 {[%clk 0:02:05]}  gxf2+ {[%clk 0:01:43]} 20. Kxf2 {[%clk 0:01:56]}  Qxd6 {[%clk 0:01:44]} 21. Be3 {[%clk 0:01:25]}  Qxh2 {[%clk 0:01:41]} 22. Bf3 {[%clk 0:01:25]}  Rhg8 {[%clk 0:01:14]} 23. Qd2 {[%clk 0:01:19]}  Ng4+ {[%clk 0:01:05]} 24. Bxg4 {[%clk 0:01:13]}  Rxg4 {[%clk 0:01:06]} 25. Rg1 {[%clk 0:01:09]}  Be4 {[%clk 0:01:00]} 26. Kf1 {[%clk 0:00:53]}  Rdg8 {[%clk 0:00:57]} 27. Rc1 {[%clk 0:00:45]}  h3 {[%clk 0:00:52]} 28. d5 {[%clk 0:00:35]}  Bxg2+ {[%clk 0:00:39]} 29. Ke1 {[%clk 0:00:31]}  Qg3+ {[%clk 0:00:38]} 30. Bf2 {[%clk 0:00:25]}  Re8+ {[%clk 0:00:36]} 31. Kd1 {[%clk 0:00:25]}  Qb3+ {[%clk 0:00:36]} 32. Rc2 {[%clk 0:00:25]}  h2 {[%clk 0:00:19]} 33. Re1 {[%clk 0:00:17]}  Bf3+ {[%clk 0:00:16]} 34. Kc1 {[%clk 0:00:16]}  Rxe1+ {[%clk 0:00:16]} 35. Qxe1 {[%clk 0:00:14]}  h1=Q {[%clk 0:00:16]} 36. Bg3+ {[%clk 0:00:12]}  Rxg3 {[%clk 0:00:13]} 37. Qxh1 {[%clk 0:00:08]}  Bxh1 {[%clk 0:00:14]} 0-1

[Event "December 5 Early 2023"]
[Site "https://www.chess.com"]
[Date "2023.12.05"]
[Round "6"]
[White "Azar, Sebastien"]
[Black "Kim, Sergey"]
[Result "1-0"]
[Board "130"]
[TimeControl "180+1"]
[WhiteFideId "2640198"]
[BlackFideId "13700570"]
[WhiteElo "2422"]
[BlackElo "2588"]
[WhiteTeam "CAN"]
[BlackTeam "KAZ"]
[WhiteClock "0:00:05"]
[BlackClock "0:00:11"]

1. e4 {[%clk 0:03:00]}  e5 {[%clk 0:02:59]} 2. Nf3 {[%clk 0:03:00]}  Nc6 {[%clk 0:03:00]} 3. Bb5 {[%clk 0:03:01]}  a6 {[%clk 0:03:00]} 4. Ba4 {[%clk 0:03:01]}  Nf6 {[%clk 0:03:00]} 5. d3 {[%clk 0:03:02]}  b5 {[%clk 0:03:00]} 6. Bb3 {[%clk 0:03:01]}  Bc5 {[%clk 0:03:00]} 7. O-O {[%clk 0:03:01]}  d6 {[%clk 0:03:01]} 8. c3 {[%clk 0:03:01]}  h6 {[%clk 0:03:00]} 9. a4 {[%clk 0:03:01]}  Rb8 {[%clk 0:02:59]} 10. Re1 {[%clk 0:02:59]}  O-O {[%clk 0:02:59]} 11. Nbd2 {[%clk 0:02:58]}  Nh5 {[%clk 0:02:52]} 12. Nf1 {[%clk 0:02:55]}  Qf6 {[%clk 0:02:50]} 13. Be3 {[%clk 0:02:52]}  Bb6 {[%clk 0:02:48]} 14. Bxb6 {[%clk 0:02:48]}  Rxb6 {[%clk 0:02:47]} 15. Ne3 {[%clk 0:02:47]}  Ne7 {[%clk 0:02:45]} 16. d4 {[%clk 0:02:31]}  Nf4 {[%clk 0:02:44]} 17. dxe5 {[%clk 0:02:27]}  dxe5 {[%clk 0:02:44]} 18. axb5 {[%clk 0:02:13]}  axb5 {[%clk 0:02:43]} 19. Ra7 {[%clk 0:02:10]}  Rd6 {[%clk 0:02:41]} 20. Qc2 {[%clk 0:02:06]}  c6 {[%clk 0:02:29]} 21. Rd1 {[%clk 0:01:59]}  Rfd8 {[%clk 0:02:24]} 22. Rxd6 {[%clk 0:01:59]}  Rxd6 {[%clk 0:02:24]} 23. c4 {[%clk 0:01:43]}  b4 {[%clk 0:02:15]} 24. c5 {[%clk 0:01:41]}  Rd8 {[%clk 0:02:08]} 25. Nf5 {[%clk 0:01:34]}  Bxf5 {[%clk 0:01:47]} 26. exf5 {[%clk 0:01:33]}  Ned5 {[%clk 0:01:21]} 27. Qe4 {[%clk 0:01:27]}  Re8 {[%clk 0:01:19]} 28. g3 {[%clk 0:01:24]}  Nh3+ {[%clk 0:01:18]} 29. Kg2 {[%clk 0:01:23]}  Ng5 {[%clk 0:01:17]} 30. Nxg5 {[%clk 0:01:22]}  hxg5 {[%clk 0:01:18]} 31. Bxd5 {[%clk 0:01:17]}  cxd5 {[%clk 0:01:18]} 32. Qxd5 {[%clk 0:01:17]}  Qxf5 {[%clk 0:01:18]} 33. c6 {[%clk 0:01:15]}  Rc8 {[%clk 0:01:08]} 34. Rd7 {[%clk 0:01:01]}  g4 {[%clk 0:00:56]} 35. c7 {[%clk 0:00:57]}  Kh7 {[%clk 0:00:20]} 36. Rxf7 {[%clk 0:00:50]}  Qg6 {[%clk 0:00:19]} 37. Re7 {[%clk 0:00:40]}  Qf6 {[%clk 0:00:13]} 38. Qe4+ {[%clk 0:00:33]}  Qg6 {[%clk 0:00:13]} 39. Qxe5 {[%clk 0:00:30]}  Qc6+ {[%clk 0:00:13]} 40. Qe4+ {[%clk 0:00:17]}  Qxe4+ {[%clk 0:00:13]} 41. Rxe4 {[%clk 0:00:18]}  Rxc7 {[%clk 0:00:14]} 42. Rxb4 {[%clk 0:00:18]}  Rc2 {[%clk 0:00:13]} 43. Rb7 {[%clk 0:00:18]}  Kh6 {[%clk 0:00:11]} 44. b4 {[%clk 0:00:19]}  Rb2 {[%clk 0:00:11]} 45. b5 {[%clk 0:00:19]}  Kh7 {[%clk 0:00:10]} 46. b6 {[%clk 0:00:20]}  Kh6 {[%clk 0:00:10]} 47. Rb8 {[%clk 0:00:18]}  Kh7 {[%clk 0:00:11]} 48. Kg1 {[%clk 0:00:17]}  Rb1+ {[%clk 0:00:10]} 49. Kg2 {[%clk 0:00:18]}  Rb2 {[%clk 0:00:11]} 50. b7 {[%clk 0:00:14]}  Rb3 {[%clk 0:00:11]} 51. h3 {[%clk 0:00:14]}  gxh3+ {[%clk 0:00:11]} 52. Kxh3 {[%clk 0:00:15]}  Rb4 {[%clk 0:00:12]} 53. f4 {[%clk 0:00:15]}  Rb1 {[%clk 0:00:12]} 54. g4 {[%clk 0:00:13]}  Rb3+ {[%clk 0:00:11]} 55. Kh4 {[%clk 0:00:13]}  g6 {[%clk 0:00:11]} 56. Kg5 {[%clk 0:00:13]}  Rb5+ {[%clk 0:00:11]} 57. f5 {[%clk 0:00:13]}  gxf5 {[%clk 0:00:11]} 58. gxf5 {[%clk 0:00:14]}  Rb6 {[%clk 0:00:11]} 59. f6 {[%clk 0:00:11]}  Rb5+ {[%clk 0:00:11]} 60. Kf4 {[%clk 0:00:11]}  Rb4+ {[%clk 0:00:10]} 61. Ke5 {[%clk 0:00:12]}  Rb5+ {[%clk 0:00:11]} 62. Ke6 {[%clk 0:00:12]}  Rb6+ {[%clk 0:00:10]} 63. Ke7 {[%clk 0:00:13]}  Rb1 {[%clk 0:00:10]} 64. f7 {[%clk 0:00:11]}  Re1+ {[%clk 0:00:09]} 65. Kf8 {[%clk 0:00:11]}  Rb1 {[%clk 0:00:09]} 66. Ke8 {[%clk 0:00:11]}  Re1+ {[%clk 0:00:09]} 67. Kd7 {[%clk 0:00:11]}  Rd1+ {[%clk 0:00:09]} 68. Ke6 {[%clk 0:00:11]}  Re1+ {[%clk 0:00:09]} 69. Kd5 {[%clk 0:00:09]}  Rd1+ {[%clk 0:00:09]} 70. Ke4 {[%clk 0:00:09]}  Re1+ {[%clk 0:00:08]} 71. Kf3 {[%clk 0:00:08]}  Rf1+ {[%clk 0:00:08]} 72. Ke2 {[%clk 0:00:08]}  Rxf7 {[%clk 0:00:08]} 73. Rh8+ {[%clk 0:00:07]}  Kxh8 {[%clk 0:00:09]} 74. b8=Q+ {[%clk 0:00:08]}  Kg7 {[%clk 0:00:09]} 75. Qe5+ {[%clk 0:00:08]}  Rf6 {[%clk 0:00:10]} 76. Ke3 {[%clk 0:00:08]}  Kf7 {[%clk 0:00:11]} 77. Qc7+ {[%clk 0:00:06]}  Kg6 {[%clk 0:00:11]} 78. Ke4 {[%clk 0:00:06]}  Rf7 {[%clk 0:00:11]} 79. Qd6+ {[%clk 0:00:06]}  Rf6 {[%clk 0:00:11]} 80. Qd7 {[%clk 0:00:06]}  Rf7 {[%clk 0:00:11]} 81. Qe8 {[%clk 0:00:06]}  Kg7 {[%clk 0:00:11]} 82. Ke5 {[%clk 0:00:05]}  Rf8 {[%clk 0:00:11]} 83. Qe7+ {[%clk 0:00:05]}  Rf7 {[%clk 0:00:12]} 84. Qg5+ {[%clk 0:00:05]}  Kf8 {[%clk 0:00:12]} 85. Ke6 {[%clk 0:00:06]}  Rg7 {[%clk 0:00:11]} 86. Qd8# {[%clk 0:00:05]} 1-0

[Event "December 5 Early 2023"]
[Site "https://www.chess.com"]
[Date "2023.12.05"]
[Round "6"]
[White "Bochnicka, Vladimir"]
[Black "Morgunov, Marc"]
[Result "0-1"]
[Board "132"]
[TimeControl "180+1"]
[WhiteFideId "14943450"]
[BlackFideId "1640305"]
[WhiteElo "2413"]
[BlackElo "2567"]
[WhiteTeam "SVK"]
[BlackTeam "AUT"]
[WhiteClock "0:00:00"]
[BlackClock "0:00:14"]

1. e4 {[%clk 0:03:00]}  c5 {[%clk 0:02:59]} 2. Nf3 {[%clk 0:03:01]}  d6 {[%clk 0:02:59]} 3. d4 {[%clk 0:03:01]}  cxd4 {[%clk 0:03:00]} 4. Nxd4 {[%clk 0:03:01]}  Nf6 {[%clk 0:03:01]} 5. Nc3 {[%clk 0:03:01]}  Nc6 {[%clk 0:03:01]} 6. f3 {[%clk 0:03:01]}  e5 {[%clk 0:03:00]} 7. Nb3 {[%clk 0:03:00]}  Be7 {[%clk 0:02:59]} 8. Be3 {[%clk 0:02:56]}  O-O {[%clk 0:02:59]} 9. Nd5 {[%clk 0:02:48]}  Nxd5 {[%clk 0:02:55]} 10. exd5 {[%clk 0:02:48]}  Nb8 {[%clk 0:02:55]} 11. Be2 {[%clk 0:02:45]}  f5 {[%clk 0:02:55]} 12. c4 {[%clk 0:02:45]}  Nd7 {[%clk 0:02:52]} 13. O-O {[%clk 0:02:41]}  b6 {[%clk 0:02:49]} 14. f4 {[%clk 0:02:34]}  exf4 {[%clk 0:02:40]} 15. Bxf4 {[%clk 0:02:31]}  g5 {[%clk 0:02:34]} 16. Bd2 {[%clk 0:02:27]}  Ne5 {[%clk 0:02:20]} 17. Nd4 {[%clk 0:02:12]}  f4 {[%clk 0:02:19]} 18. Qc2 {[%clk 0:01:49]}  Bf6 {[%clk 0:02:12]} 19. Kh1 {[%clk 0:01:42]}  Bg7 {[%clk 0:02:08]} 20. a4 {[%clk 0:01:39]}  Bd7 {[%clk 0:01:46]} 21. Bd3 {[%clk 0:01:14]}  h6 {[%clk 0:01:12]} 22. Bb4 {[%clk 0:01:07]}  Qf6 {[%clk 0:01:09]} 23. Bc3 {[%clk 0:00:49]}  Rac8 {[%clk 0:01:05]} 24. b3 {[%clk 0:00:31]}  Rfe8 {[%clk 0:01:04]} 25. Bf5 {[%clk 0:00:28]}  Bxf5 {[%clk 0:00:48]} 26. Qxf5 {[%clk 0:00:25]}  Qxf5 {[%clk 0:00:26]} 27. Nxf5 {[%clk 0:00:25]}  Rcd8 {[%clk 0:00:27]} 28. a5 {[%clk 0:00:22]}  Rf8 {[%clk 0:00:22]} 29. Nxg7 {[%clk 0:00:19]}  Kxg7 {[%clk 0:00:23]} 30. axb6 {[%clk 0:00:19]}  axb6 {[%clk 0:00:23]} 31. Ra7+ {[%clk 0:00:16]}  Kg6 {[%clk 0:00:21]} 32. Rb7 {[%clk 0:00:15]}  Rb8 {[%clk 0:00:21]} 33. Re7 {[%clk 0:00:13]}  Rfe8 {[%clk 0:00:20]} 34. Rc7 {[%clk 0:00:12]}  Ra8 {[%clk 0:00:13]} 35. Bxe5 {[%clk 0:00:11]}  dxe5 {[%clk 0:00:12]} 36. Rc6+ {[%clk 0:00:12]}  Kf5 {[%clk 0:00:12]} 37. Rxb6 {[%clk 0:00:07]}  e4 {[%clk 0:00:13]} 38. d6 {[%clk 0:00:07]}  e3 {[%clk 0:00:13]} 39. d7 {[%clk 0:00:04]}  e2 {[%clk 0:00:14]} 40. Re1 {[%clk 0:00:00]}  Ra1 {[%clk 0:00:14]} 0-1

[Event "December 5 Early 2023"]
[Site "https://www.chess.com"]
[Date "2023.12.05"]
[Round "6"]
[White "Vakhidov, Shahzod"]
[Black "Matthes, Aaron"]
[Result "0-1"]
[Board "134"]
[TimeControl "180+1"]
[WhiteFideId "14205270"]
[BlackFideId "16227310"]
[WhiteElo "2547"]
[BlackElo "2409"]
[WhiteTeam "UZB"]
[BlackTeam "GER"]
[WhiteClock "0:00:20"]
[BlackClock "0:00:23"]

1. d4 {[%clk 0:03:00]}  Nf6 {[%clk 0:02:58]} 2. Nf3 {[%clk 0:03:01]}  b6 {[%clk 0:02:58]} 3. g3 {[%clk 0:03:01]}  Bb7 {[%clk 0:02:58]} 4. Bg2 {[%clk 0:03:02]}  e6 {[%clk 0:02:57]} 5. O-O {[%clk 0:03:02]}  Be7 {[%clk 0:02:58]} 6. c4 {[%clk 0:03:02]}  O-O {[%clk 0:02:58]} 7. d5 {[%clk 0:03:03]}  exd5 {[%clk 0:02:57]} 8. Nh4 {[%clk 0:03:04]}  Ne4 {[%clk 0:02:34]} 9. cxd5 {[%clk 0:02:54]}  Bxh4 {[%clk 0:02:33]} 10. Bxe4 {[%clk 0:02:51]}  Bf6 {[%clk 0:02:33]} 11. Qc2 {[%clk 0:02:39]}  g6 {[%clk 0:02:32]} 12. Bf4 {[%clk 0:02:35]}  d6 {[%clk 0:02:30]} 13. Nc3 {[%clk 0:02:33]}  Nd7 {[%clk 0:02:30]} 14. Rac1 {[%clk 0:02:32]}  Re8 {[%clk 0:02:27]} 15. Bg2 {[%clk 0:02:19]}  a5 {[%clk 0:02:20]} 16. Ne4 {[%clk 0:02:13]}  Nc5 {[%clk 0:01:50]} 17. Nxc5 {[%clk 0:01:51]}  bxc5 {[%clk 0:01:46]} 18. b3 {[%clk 0:01:50]}  Qd7 {[%clk 0:01:40]} 19. e4 {[%clk 0:01:48]}  a4 {[%clk 0:01:37]} 20. Rfe1 {[%clk 0:01:46]}  axb3 {[%clk 0:01:29]} 21. axb3 {[%clk 0:01:46]}  Ra3 {[%clk 0:01:25]} 22. e5 {[%clk 0:01:40]}  dxe5 {[%clk 0:01:25]} 23. Be3 {[%clk 0:01:40]}  Bxd5 {[%clk 0:01:21]} 24. Red1 {[%clk 0:00:54]}  c6 {[%clk 0:01:20]} 25. Qxc5 {[%clk 0:00:54]}  Rxb3 {[%clk 0:01:09]} 26. Bxd5 {[%clk 0:00:52]}  cxd5 {[%clk 0:01:09]} 27. Rxd5 {[%clk 0:00:53]}  Qb7 {[%clk 0:00:57]} 28. Rcd1 {[%clk 0:00:48]}  Rb1 {[%clk 0:00:52]} 29. Bh6 {[%clk 0:00:45]}  Rxd1+ {[%clk 0:00:44]} 30. Rxd1 {[%clk 0:00:46]}  Qf3 {[%clk 0:00:41]} 31. Qd6 {[%clk 0:00:40]}  Bg7 {[%clk 0:00:18]} 32. Be3 {[%clk 0:00:37]}  Qf6 {[%clk 0:00:14]} 33. Qd7 {[%clk 0:00:36]}  Qe6 {[%clk 0:00:14]} 34. Qb7 {[%clk 0:00:35]}  h6 {[%clk 0:00:14]} 35. h4 {[%clk 0:00:35]}  e4 {[%clk 0:00:13]} 36. Rd7 {[%clk 0:00:35]}  Qf5 {[%clk 0:00:12]} 37. Qc7 {[%clk 0:00:27]}  Be5 {[%clk 0:00:08]} 38. Qc6 {[%clk 0:00:25]}  Qf3 {[%clk 0:00:07]} 39. Rd5 {[%clk 0:00:20]}  Re6 {[%clk 0:00:05]} 40. Rd8+ {[%clk 0:00:12]}  Kg7 {[%clk 0:00:06]} 41. Qe8 {[%clk 0:00:12]}  Rxe8 {[%clk 0:00:03]} 42. Rxe8 {[%clk 0:00:13]}  Bxg3 {[%clk 0:00:03]} 43. Rc8 {[%clk 0:00:06]}  f6 {[%clk 0:00:03]} 44. Rc3 {[%clk 0:00:03]}  Bxh4 {[%clk 0:00:03]} 45. Rc7+ {[%clk 0:00:03]}  Kf8 {[%clk 0:00:02]} 46. Rc8+ {[%clk 0:00:04]}  Ke7 {[%clk 0:00:03]} 47. Rc7+ {[%clk 0:00:04]}  Kd8 {[%clk 0:00:03]} 48. Rc1 {[%clk 0:00:05]}  Qg4+ {[%clk 0:00:03]} 49. Kf1 {[%clk 0:00:05]}  Bg5 {[%clk 0:00:04]} 50. Re1 {[%clk 0:00:04]}  Qh3+ {[%clk 0:00:04]} 51. Ke2 {[%clk 0:00:04]}  Bxe3 {[%clk 0:00:05]} 52. fxe3 {[%clk 0:00:05]}  Qf3+ {[%clk 0:00:05]} 53. Kd2 {[%clk 0:00:05]}  Qf2+ {[%clk 0:00:06]} 54. Re2 {[%clk 0:00:06]}  Qxe2+ {[%clk 0:00:06]} 55. Kxe2 {[%clk 0:00:07]}  f5 {[%clk 0:00:07]} 56. Kf2 {[%clk 0:00:08]}  Ke7 {[%clk 0:00:07]} 57. Kg3 {[%clk 0:00:09]}  Kf6 {[%clk 0:00:08]} 58. Kf4 {[%clk 0:00:09]}  g5+ {[%clk 0:00:08]} 59. Kg3 {[%clk 0:00:10]}  Ke5 {[%clk 0:00:09]} 60. Kh3 {[%clk 0:00:11]}  h5 {[%clk 0:00:10]} 61. Kg3 {[%clk 0:00:12]}  f4+ {[%clk 0:00:11]} 62. Kg2 {[%clk 0:00:13]}  f3+ {[%clk 0:00:11]} 63. Kf1 {[%clk 0:00:14]}  Kf5 {[%clk 0:00:12]} 64. Kf2 {[%clk 0:00:15]}  g4 {[%clk 0:00:12]} 65. Kg1 {[%clk 0:00:16]}  h4 {[%clk 0:00:13]} 66. Kh2 {[%clk 0:00:16]}  g3+ {[%clk 0:00:14]} 67. Kh1 {[%clk 0:00:16]}  h3 {[%clk 0:00:14]} 68. Kg1 {[%clk 0:00:17]}  g2 {[%clk 0:00:14]} 69. Kh2 {[%clk 0:00:17]}  Ke5 {[%clk 0:00:15]} 70. Kg1 {[%clk 0:00:17]}  Kd5 {[%clk 0:00:16]} 71. Kf2 {[%clk 0:00:17]}  Kc6 {[%clk 0:00:17]} 72. Kg1 {[%clk 0:00:17]}  Kb5 {[%clk 0:00:18]} 73. Kf2 {[%clk 0:00:18]}  Ka5 {[%clk 0:00:19]} 74. Kg1 {[%clk 0:00:19]}  Ka4 {[%clk 0:00:20]} 75. Kf2 {[%clk 0:00:19]}  Kb4 {[%clk 0:00:21]} 76. Kg1 {[%clk 0:00:20]}  Kc4 {[%clk 0:00:21]} 77. Kh2 {[%clk 0:00:21]}  Kc3 {[%clk 0:00:22]} 78. Kg1 {[%clk 0:00:22]}  Kd3 {[%clk 0:00:23]} 79. Kf2 {[%clk 0:00:22]}  h2 {[%clk 0:00:23]} 80. Kg3 {[%clk 0:00:21]}  g1=Q+ {[%clk 0:00:24]} 81. Kf4 {[%clk 0:00:20]}  f2 {[%clk 0:00:23]} 0-1

[Event "December 5 Early 2023"]
[Site "https://www.chess.com"]
[Date "2023.12.05"]
[Round "6"]
[White "Bilan, Danila"]
[Black "Herman, Daniel"]
[Result "0-1"]
[Board "136"]
[TimeControl "180+1"]
[WhiteFideId "24161918"]
[BlackFideId "30935008"]
[WhiteElo "2532"]
[BlackElo "2402"]
[WhiteTeam "RUS"]
[BlackTeam "USA"]
[WhiteClock "0:00:13"]
[BlackClock "0:00:10"]

1. d4 {[%clk 0:02:59]}  Nf6 {[%clk 0:02:55]} 2. c4 {[%clk 0:02:58]}  g6 {[%clk 0:02:56]} 3. Nc3 {[%clk 0:02:58]}  d5 {[%clk 0:02:56]} 4. Nf3 {[%clk 0:02:58]}  Bg7 {[%clk 0:02:56]} 5. e3 {[%clk 0:02:58]}  O-O {[%clk 0:02:56]} 6. b3 {[%clk 0:02:59]}  c5 {[%clk 0:02:54]} 7. Bb2 {[%clk 0:02:59]}  cxd4 {[%clk 0:02:50]} 8. exd4 {[%clk 0:02:58]}  Nc6 {[%clk 0:02:48]} 9. Be2 {[%clk 0:02:55]}  Bg4 {[%clk 0:02:40]} 10. h3 {[%clk 0:02:51]}  Bxf3 {[%clk 0:02:39]} 11. Bxf3 {[%clk 0:02:51]}  dxc4 {[%clk 0:02:29]} 12. Bxc6 {[%clk 0:02:52]}  bxc6 {[%clk 0:02:29]} 13. bxc4 {[%clk 0:02:53]}  Rb8 {[%clk 0:02:23]} 14. Rb1 {[%clk 0:02:37]}  Qa5 {[%clk 0:02:21]} 15. Qf3 {[%clk 0:02:23]}  c5 {[%clk 0:01:57]} 16. O-O {[%clk 0:00:49]}  cxd4 {[%clk 0:01:56]} 17. Nb5 {[%clk 0:00:49]}  e5 {[%clk 0:01:48]} 18. Ba3 {[%clk 0:00:38]}  Rfe8 {[%clk 0:01:15]} 19. Nd6 {[%clk 0:00:26]}  e4 {[%clk 0:01:08]} 20. Nxe8 {[%clk 0:00:13]}  Rxe8 {[%clk 0:00:38]} 21. Qb3 {[%clk 0:00:12]}  e3 {[%clk 0:00:34]} 22. fxe3 {[%clk 0:00:13]}  dxe3 {[%clk 0:00:26]} 23. Bb2 {[%clk 0:00:13]}  e2 {[%clk 0:00:24]} 24. Rfe1 {[%clk 0:00:13]}  Qc5+ {[%clk 0:00:15]} 25. Kh1 {[%clk 0:00:13]}  Ne4 {[%clk 0:00:12]} 26. Bxg7 {[%clk 0:00:11]}  Nd2 {[%clk 0:00:08]} 27. Qb4 {[%clk 0:00:07]}  Qxb4 {[%clk 0:00:06]} 28. Rxb4 {[%clk 0:00:08]}  Kxg7 {[%clk 0:00:07]} 29. Rb2 {[%clk 0:00:07]}  Nf1 {[%clk 0:00:07]} 30. Rbxe2 {[%clk 0:00:08]}  Ng3+ {[%clk 0:00:07]} 31. Kg1 {[%clk 0:00:08]}  Rxe2 {[%clk 0:00:05]} 32. Rd1 {[%clk 0:00:08]}  Rxa2 {[%clk 0:00:05]} 33. Rd7 {[%clk 0:00:08]}  Rc2 {[%clk 0:00:05]} 34. Rd3 {[%clk 0:00:07]}  Nf5 {[%clk 0:00:05]} 35. Ra3 {[%clk 0:00:06]}  Rxc4 {[%clk 0:00:04]} 36. Rxa7 {[%clk 0:00:07]}  Rc2 {[%clk 0:00:05]} 37. g4 {[%clk 0:00:08]}  Nh4 {[%clk 0:00:05]} 38. Ra3 {[%clk 0:00:09]}  h6 {[%clk 0:00:04]} 39. Kf1 {[%clk 0:00:09]}  g5 {[%clk 0:00:05]} 40. Ke1 {[%clk 0:00:09]}  Rh2 {[%clk 0:00:04]} 41. Kd1 {[%clk 0:00:10]}  Rf2 {[%clk 0:00:04]} 42. Ke1 {[%clk 0:00:11]}  Rf3 {[%clk 0:00:04]} 43. Ra6 {[%clk 0:00:11]}  Rxh3 {[%clk 0:00:04]} 44. Kf2 {[%clk 0:00:11]}  Rh2+ {[%clk 0:00:05]} 45. Ke3 {[%clk 0:00:11]}  Rg2 {[%clk 0:00:05]} 46. Ra4 {[%clk 0:00:11]}  Kg6 {[%clk 0:00:04]} 47. Ra6+ {[%clk 0:00:10]}  f6 {[%clk 0:00:05]} 48. Ra4 {[%clk 0:00:11]}  h5 {[%clk 0:00:05]} 49. gxh5+ {[%clk 0:00:11]}  Kxh5 {[%clk 0:00:05]} 50. Ra5 {[%clk 0:00:10]}  f5 {[%clk 0:00:06]} 51. Ra6 {[%clk 0:00:11]}  f4+ {[%clk 0:00:06]} 52. Ke4 {[%clk 0:00:12]}  Rb2 {[%clk 0:00:06]} 53. Ra8 {[%clk 0:00:13]}  Kg4 {[%clk 0:00:06]} 54. Rg8 {[%clk 0:00:13]}  Nf5 {[%clk 0:00:07]} 55. Rf8 {[%clk 0:00:13]}  Ng3+ {[%clk 0:00:07]} 56. Ke5 {[%clk 0:00:13]}  f3 {[%clk 0:00:08]} 57. Rg8 {[%clk 0:00:13]}  f2 {[%clk 0:00:08]} 58. Rf8 {[%clk 0:00:13]}  f1=Q {[%clk 0:00:08]} 59. Rxf1 {[%clk 0:00:14]}  Nxf1 {[%clk 0:00:09]} 60. Ke6 {[%clk 0:00:13]}  Ng3 {[%clk 0:00:10]} 0-1

[Event "December 5 Early 2023"]
[Site "https://www.chess.com"]
[Date "2023.12.05"]
[Round "6"]
[White "Chylewski, Patryk"]
[Black "Ovezdurdyyeva, Jemal"]
[Result "0-1"]
[Board "139"]
[TimeControl "180+1"]
[WhiteFideId "1186191"]
[BlackFideId "14001888"]
[WhiteElo "2528"]
[BlackElo "2375"]
[WhiteTeam "POL"]
[BlackTeam "TKM"]
[WhiteClock "0:00:00"]
[BlackClock "0:00:10"]

1. e4 {[%clk 0:03:00]}  d6 {[%clk 0:02:59]} 2. d4 {[%clk 0:03:00]}  Nf6 {[%clk 0:02:59]} 3. f3 {[%clk 0:02:59]}  g6 {[%clk 0:02:59]} 4. c4 {[%clk 0:02:55]}  c6 {[%clk 0:02:59]} 5. Nc3 {[%clk 0:02:55]}  Bg7 {[%clk 0:02:59]} 6. Nge2 {[%clk 0:02:51]}  a6 {[%clk 0:02:59]} 7. Be3 {[%clk 0:02:46]}  b5 {[%clk 0:02:58]} 8. c5 {[%clk 0:02:47]}  O-O {[%clk 0:02:57]} 9. Ng3 {[%clk 0:02:39]}  Nbd7 {[%clk 0:02:39]} 10. Rc1 {[%clk 0:02:31]}  h5 {[%clk 0:02:30]} 11. h4 {[%clk 0:02:23]}  dxc5 {[%clk 0:02:26]} 12. dxc5 {[%clk 0:02:22]}  Ne5 {[%clk 0:02:27]} 13. Qc2 {[%clk 0:02:14]}  Qc7 {[%clk 0:02:19]} 14. Bf2 {[%clk 0:01:57]}  Rd8 {[%clk 0:02:14]} 15. Be2 {[%clk 0:01:53]}  Be6 {[%clk 0:02:08]} 16. b3 {[%clk 0:01:49]}  Bh6 {[%clk 0:02:00]} 17. Rd1 {[%clk 0:01:29]}  Rxd1+ {[%clk 0:01:59]} 18. Nxd1 {[%clk 0:01:30]}  Rd8 {[%clk 0:01:59]} 19. O-O {[%clk 0:01:14]}  Rd2 {[%clk 0:01:58]} 20. Qb1 {[%clk 0:01:02]}  Bf4 {[%clk 0:01:52]} 21. Be1 {[%clk 0:00:32]}  Rd8 {[%clk 0:01:30]} 22. Nh1 {[%clk 0:00:32]}  Bh2+ {[%clk 0:01:12]} 23. Kf2 {[%clk 0:00:32]}  Bf4 {[%clk 0:00:44]} 24. g3 {[%clk 0:00:30]}  Bh6 {[%clk 0:00:43]} 25. Kg1 {[%clk 0:00:23]}  Nfd7 {[%clk 0:00:39]} 26. Qc2 {[%clk 0:00:20]}  Bh3 {[%clk 0:00:31]} 27. Rf2 {[%clk 0:00:20]}  Nf8 {[%clk 0:00:31]} 28. Rh2 {[%clk 0:00:19]}  Bc8 {[%clk 0:00:28]} 29. Bc3 {[%clk 0:00:19]}  Ne6 {[%clk 0:00:26]} 30. b4 {[%clk 0:00:14]}  a5 {[%clk 0:00:25]} 31. a3 {[%clk 0:00:14]}  axb4 {[%clk 0:00:25]} 32. axb4 {[%clk 0:00:15]}  Nc4 {[%clk 0:00:21]} 33. Bxc4 {[%clk 0:00:13]}  bxc4 {[%clk 0:00:22]} 34. Re2 {[%clk 0:00:12]}  Ba6 {[%clk 0:00:22]} 35. Kg2 {[%clk 0:00:12]}  Bb5 {[%clk 0:00:22]} 36. Nhf2 {[%clk 0:00:12]}  Ra8 {[%clk 0:00:22]} 37. Re1 {[%clk 0:00:06]}  Qd7 {[%clk 0:00:21]} 38. Ne3 {[%clk 0:00:03]}  Ra3 {[%clk 0:00:16]} 39. Rd1 {[%clk 0:00:03]}  Qc7 {[%clk 0:00:15]} 40. Nf1 {[%clk 0:00:02]}  Ba4 {[%clk 0:00:15]} 41. Qb2 {[%clk 0:00:01]}  Rb3 {[%clk 0:00:15]} 42. Qa2 {[%clk 0:00:01]}  Rxc3 {[%clk 0:00:12]} 43. Qxa4 {[%clk 0:00:01]}  Kg7 {[%clk 0:00:12]} 44. Qa2 {[%clk 0:00:01]}  Rb3 {[%clk 0:00:11]} 45. Qa1+ {[%clk 0:00:01]}  Kh7 {[%clk 0:00:11]} 46. Qa4 {[%clk 0:00:02]}  Qb7 {[%clk 0:00:09]} 47. Qa5 {[%clk 0:00:01]}  Rxb4 {[%clk 0:00:09]} 48. Qa3 {[%clk 0:00:01]}  Rb2 {[%clk 0:00:09]} 49. Qa1 {[%clk 0:00:01]}  c3 {[%clk 0:00:09]} 50. Kg1 {[%clk 0:00:01]}  c2 {[%clk 0:00:10]} 51. Rc1 {[%clk 0:00:01]}  Bxc1 {[%clk 0:00:10]} 52. Qxc1 {[%clk 0:00:02]}  Qb3 {[%clk 0:00:10]} 53. Ne3 {[%clk 0:00:00]}  Rb1 {[%clk 0:00:10]} 0-1